bitfinex-derivatives/quotes_BTCF0:USTF0_20241023
["timestamp","ask_amount","ask_price","bid_price","bid_amount"]
[1729698980372,0.17,66116.0,66114.0,0.0004]
[1729698980573,0.0002,66121.0,66114.0,0.1704]
[1729698980882,0.075656,66132.0,66120.0,0.0004]
[1729698981188,0.075656,66132.0,66125.0,0.07552943]
[1729698981189,0.075658,66130.0,66125.0,0.07552943]
[1729698981482,0.075656,66131.0,66126.0,0.075662]
[1729698981688,0.075656,66131.0,66125.0,0.07552943]
[1729698981689,0.075658,66130.0,66125.0,0.07552943]
[1729698981891,0.075658,66130.0,66128.0,0.0004]
[1729698982391,0.17,66136.0,66128.0,0.07606]
[1729698982683,0.075657,66131.0,66128.0,0.0004]
[1729698983184,0.17,66133.0,66128.0,0.0004]
[1729698983374,0.075658,66130.0,66128.0,0.0004]
[1729698983690,0.075655,66132.0,66128.0,0.07606]
[1729698983885,0.17,66133.0,66128.0,0.0004]
[1729698984086,0.245858,66129.0,66128.0,0.0004]
[1729698985187,0.075858,66129.0,66128.0,0.0004]
[1729698985386,0.075858,66129.0,66128.0,0.07606]
[1729698985587,0.0002,66129.0,66128.0,0.07606]
[1729698988286,0.075649,66138.0,66137.0,0.075648]
[1729698988482,0.0002,66139.0,66133.0,0.075653]
[1729698988483,0.07565,66136.0,66133.0,0.075653]
[1729698988687,0.075652,66135.0,66134.0,0.241]
[1729698993097,0.17,66136.0,66134.0,0.241]
[1729698993289,0.17,66136.0,66134.0,0.316653]
[1729698993496,0.17,66136.0,66134.0,0.241]
[1729698993696,0.075652,66135.0,66134.0,0.241]
[1729698995399,0.075848,66139.0,66135.0,0.075651]
[1729698995794,0.075848,66139.0,66138.0,0.0004]
[1729698996800,0.190848,66139.0,66138.0,0.0004]
[1729698997197,0.0002,66139.0,66138.0,0.076048]
[1729698997388,0.0002,66139.0,66138.0,0.187448]
[1729698997908,0.075838,66147.0,66138.0,0.1118]
[1729698997909,0.0002,66147.0,66138.0,0.1118]
[1729698998203,0.0002,66147.0,66146.0,0.246039]
[1729698998592,0.0002,66147.0,66146.0,0.699559]
[1729698998801,0.0002,66153.0,66149.0,0.075636]
[1729698999097,0.0002,66153.0,66149.0,0.076036]
[1729699000305,0.0002,66153.0,66149.0,0.529556]
[1729699005005,0.0002,66153.0,66149.0,0.53726555]
[1729699006894,0.0002,66153.0,66149.0,0.5974395]
[1729699007096,0.0002,66153.0,66149.0,0.53726555]
[1729699008301,0.0002,66153.0,66149.0,0.08374555]
[1729699008302,0.075832,66153.0,66149.0,0.08374555]
[1729699008600,0.075832,66153.0,66149.0,0.53726555]
[1729699009305,0.0002,66153.0,66149.0,0.53726555]
[1729699009793,0.0002,66158.0,66149.0,0.53726555]
[1729699009794,0.0002,66170.0,66152.0,0.075632]
[1729699009994,0.0002,66170.0,66169.0,0.075613]
[1729699010199,0.0002,66170.0,66169.0,0.245613]
[1729699010596,0.075812,66170.0,66169.0,0.245613]
[1729699011702,0.0002,66170.0,66169.0,0.245613]
[1729699012905,0.0004,66183.0,66182.0,0.075598]
[1729699013102,0.0004,66183.0,66182.0,0.245598]
[1729699014415,0.0002,66186.0,66182.0,0.245598]
[1729699014597,0.108,66195.0,66187.0,0.075592]
[1729699014895,0.108,66195.0,66187.0,0.245592]
[1729699015098,0.075586,66193.0,66187.0,0.245592]
[1729699015291,0.108,66195.0,66187.0,0.245592]
[1729699015601,0.108,66195.0,66187.0,0.25332314]
[1729699015602,0.278,66195.0,66187.0,0.25332314]
[1729699015804,0.075594,66186.0,66183.0,0.245596]
[1729699016004,0.17,66194.0,66183.0,0.17]
[1729699016194,0.07559,66189.0,66187.0,0.075592]
[1729699017104,0.07559,66189.0,66187.0,0.245592]
[1729699017998,0.17,66194.0,66187.0,0.245592]
[1729699018194,0.075586,66193.0,66187.0,0.245592]
[1729699018398,0.075586,66193.0,66187.0,0.25338235]
[1729699018806,0.07559,66190.0,66187.0,0.25338235]
[1729699020302,0.075587,66192.0,66187.0,0.25338235]
[1729699020810,0.075588,66191.0,66187.0,0.25338235]
[1729699021606,0.108,66195.0,66187.0,0.25338235]
[1729699023001,0.108,66195.0,66187.0,0.42338235]
[1729699023207,0.0002,66198.0,66197.0,0.075581]
[1729699025900,0.0002,66198.0,66197.0,0.528781]
[1729699026100,0.0002,66203.0,66202.0,0.075575]
[1729699026307,0.0002,66203.0,66202.0,0.245575]
[1729699028601,0.0002,66203.0,66202.0,0.075575]
[1729699028805,0.0002,66203.0,66202.0,0.245575]
[1729699029013,0.0004,66206.0,66205.0,0.075572]
[1729699029208,0.0004,66206.0,66205.0,0.245572]
[1729699029507,0.0002,66213.0,66206.0,0.45312]
[1729699029701,0.07555,66224.0,66220.0,0.075554]
[1729699029902,0.075547,66227.0,66220.0,0.075554]
[1729699030099,0.0002,66229.0,66220.0,0.075554]
[1729699030910,0.075745,66229.0,66220.0,0.075554]
[1729699031114,0.075745,66229.0,66220.0,0.08339603]
[1729699031503,0.0002,66229.0,66220.0,0.20223603]
[1729699031705,0.075753,66221.0,66220.0,0.08339603]
[1729699032404,0.075558,66217.0,66216.0,0.17]
[1729699032710,0.075758,66217.0,66216.0,0.245559]
[1729699033017,0.0002,66217.0,66216.0,0.245559]
[1729699033513,0.075758,66217.0,66216.0,0.245559]
[1729699033901,0.075562,66214.0,66213.0,0.075559]
[1729699034103,0.075562,66214.0,66213.0,0.245559]
[1729699034306,0.075762,66214.0,66213.0,0.245559]
[1729699035113,0.0002,66214.0,66213.0,0.245559]
[1729699035303,0.075762,66214.0,66213.0,0.245559]
[1729699035699,0.075762,66214.0,66213.0,0.17]
[1729699035908,0.075562,66213.0,66212.0,0.00779433]
[1729699036109,0.075567,66209.0,66208.0,0.075567]
[1729699036317,0.075567,66209.0,66208.0,0.08330216]
[1729699036509,0.075767,66209.0,66208.0,0.08330216]
[1729699036712,0.0002,66209.0,66208.0,0.08330216]
[1729699037711,0.0002,66209.0,66208.0,0.14348641]
[1729699038613,0.0002,66209.0,66208.0,0.08330216]
[1729699039513,0.0002,66209.0,66208.0,0.25330216]
[1729699039714,0.0002,66209.0,66208.0,0.18520216]
[1729699041113,0.0002,66214.0,66213.0,0.024036]
[1729699041419,0.0002,66214.0,66213.0,0.194036]
[1729699042810,0.0002,66214.0,66213.0,0.269598]
[1729699044813,0.07554,66233.0,66213.0,0.269598]
[1729699044814,0.0002,66229.0,66220.0,0.075554]
[1729699045023,0.0002,66229.0,66228.0,0.075545]
[1729699047410,0.0002,66229.0,66228.0,0.194145]
[1729699049113,0.0002,66229.0,66228.0,0.08332718]
[1729699049514,0.075744,66229.0,66228.0,0.08332718]
[1729699049916,0.0002,66229.0,66228.0,0.08332718]
[1729699050420,0.075744,66229.0,66228.0,0.14347006]
[1729699050623,0.075744,66229.0,66228.0,0.00778218]
[1729699050816,0.075545,66228.0,66227.0,0.075546]
[1729699051126,0.075745,66228.0,66227.0,0.245546]
[1729699052517,0.075745,66228.0,66227.0,0.30568577]
[1729699053525,0.075745,66228.0,66227.0,0.245546]
[1729699054533,0.0002,66228.0,66224.0,0.08277321]
[1729699054827,0.075549,66226.0,66225.0,0.075548]
[1729699055218,0.213,66227.0,66225.0,0.06023944]
[1729699055416,0.075549,66225.0,66224.0,0.075549]
[1729699055827,0.075749,66225.0,66224.0,0.075549]
[1729699056131,0.0002,66225.0,66224.0,0.075549]
[1729699056426,0.0002,66225.0,66224.0,0.1358114]
[1729699057533,0.0002,66225.0,66224.0,0.075549]
[1729699059737,0.0002,66225.0,66224.0,0.245549]
[1729699060031,0.0002,66228.0,66227.0,0.075546]
[1729699060231,0.0002,66228.0,66227.0,0.34802805]
[1729699060536,0.0002,66228.0,66227.0,0.4385946]
[1729699060735,0.0002,66228.0,66227.0,0.34802805]
[1729699061431,0.0002,66228.0,66227.0,0.42340794]
[1729699061635,0.0002,66228.0,66227.0,0.34802805]
[1729699061828,0.0002,66237.0,66236.0,0.075536]
[1729699062032,0.0002,66237.0,66236.0,0.245536]
[1729699063434,0.0002,66237.0,66236.0,0.320901]
[1729699063632,0.0002,66237.0,66236.0,0.245536]
[1729699064734,0.0002,66237.0,66236.0,0.25332712]
[1729699064919,0.0002,66237.0,66234.0,0.075365]
[1729699065126,0.0002,66237.0,66234.0,0.13580023]
[1729699065127,0.075537,66235.0,66234.0,0.13580023]
[1729699065427,0.075737,66235.0,66234.0,0.13579923]
[1729699065629,0.0002,66235.0,66234.0,0.13579923]
[1729699065940,0.0002,66235.0,66234.0,0.075538]
[1729699066230,0.0002,66235.0,66234.0,0.08337319]
[1729699069037,0.1702,66235.0,66234.0,0.0602732]
[1729699069232,0.1702,66235.0,66229.0,0.0602732]
[1729699069233,0.075542,66231.0,66229.0,0.0602732]
[1729699069431,0.075542,66231.0,66226.0,0.17]
[1729699069432,0.105,66230.0,66226.0,0.17]
[1729699069635,0.1052,66230.0,66229.0,0.075544]
[1729699070034,0.1052,66230.0,66229.0,0.1358314]
[1729699070937,0.180743,66230.0,66229.0,0.1358314]
[1729699071135,0.180743,66230.0,66229.0,0.075544]
[1729699071730,0.180743,66230.0,66229.0,0.1358314]
[1729699072727,0.180743,66230.0,66229.0,0.30586155]
[1729699072931,0.180743,66230.0,66229.0,0.30586154]
[1729699073539,0.180743,66230.0,66229.0,0.245544]
[1729699074533,0.0002,66230.0,66229.0,0.245544]
[1729699076543,0.0002,66230.0,66229.0,0.320909]
[1729699076836,0.0002,66230.0,66229.0,0.245544]
[1729699077429,0.0002,66230.0,66229.0,0.320909]
[1729699077631,0.0002,66230.0,66229.0,0.245544]
[1729699082042,0.0002,66230.0,66226.0,0.150912]
[1729699082340,0.245743,66230.0,66229.0,0.04526396]
[1729699082555,0.075544,66229.0,66228.0,0.075545]
[1729699082745,0.0002,66230.0,66227.0,0.04526396]
[1729699082746,0.075545,66228.0,66227.0,0.04526396]
[1729699083045,0.075546,66227.0,66226.0,0.04526396]
[1729699083347,0.075548,66226.0,66225.0,0.04526396]
[1729699083535,0.1702,66227.0,66223.0,0.04526434]
[1729699083738,0.075551,66223.0,66222.0,0.04752919]
[1729699083940,0.075551,66223.0,66222.0,0.00226485]
[1729699083941,0.245551,66223.0,66222.0,0.00226485]
[1729699084247,0.245751,66223.0,66222.0,0.00226485]
[1729699084635,0.075554,66220.0,66219.0,0.04526384]
[1729699085038,0.075754,66220.0,66219.0,0.04526384]
[1729699085240,0.075754,66220.0,66219.0,0.12081984]
[1729699085440,0.075754,66220.0,66219.0,0.04526384]
[1729699085743,0.075556,66219.0,66218.0,0.12082084]
[1729699086131,0.075756,66219.0,66218.0,0.12082084]
[1729699086639,0.075756,66219.0,66218.0,0.075557]
[1729699087043,0.075557,66218.0,66217.0,0.04526384]
[1729699087232,0.075557,66218.0,66217.0,0.12082184]
[1729699087435,0.075757,66218.0,66217.0,0.12082184]
[1729699087642,0.075757,66218.0,66217.0,0.075558]
[1729699088147,0.0002,66218.0,66217.0,0.075558]
[1729699088448,0.0002,66218.0,66217.0,0.12079082]
[1729699088741,0.0002,66218.0,66217.0,0.075558]
[1729699092347,0.0002,66218.0,66217.0,0.13590995]
[1729699092648,0.0002,66218.0,66217.0,0.075558]
[1729699094052,0.0002,66218.0,66217.0,0.12077601]
[1729699094443,0.0002,66218.0,66217.0,0.075558]
[1729699094638,0.0002,66218.0,66217.0,0.12077985]
[1729699094847,0.0002,66218.0,66217.0,0.075558]
[1729699095047,0.0002,66218.0,66217.0,0.12077991]
[1729699095953,0.0002,66218.0,66217.0,0.075558]
[1729699096152,0.0002,66218.0,66217.0,0.12078046]
[1729699096755,0.0002,66218.0,66217.0,0.075558]
[1729699097256,0.0002,66218.0,66217.0,0.12078417]
[1729699097448,0.0002,66218.0,66217.0,0.075558]
[1729699100745,0.0002,66218.0,66217.0,0.13590995]
[1729699100948,0.0002,66218.0,66217.0,0.075558]
[1729699102654,0.075757,66218.0,66217.0,0.075558]
[1729699103054,0.075757,66218.0,66215.0,0.06035195]
[1729699103055,0.075559,66216.0,66215.0,0.06035195]
[1729699103447,0.075759,66216.0,66215.0,0.06035195]
[1729699103642,0.528839,66216.0,66215.0,0.06035195]
[1729699104161,0.075759,66216.0,66215.0,0.06035195]
[1729699106361,0.075759,66216.0,66215.0,0.13591195]
[1729699108362,0.075759,66216.0,66215.0,0.06035195]
[1729699109050,0.075759,66216.0,66214.0,0.075561]
[1729699109448,0.0002,66215.0,66214.0,0.075561]
[1729699109653,0.07576,66215.0,66214.0,0.075561]
[1729699111871,0.075561,66214.0,66213.0,0.024036]
[1729699112259,0.075761,66214.0,66213.0,0.024036]
[1729699112468,0.075761,66214.0,66213.0,0.099598]
[1729699112862,0.0002,66214.0,66213.0,0.099598]
[1729699118284,0.0002,66219.0,66213.0,0.099598]
[1729699118473,0.0002,66219.0,66218.0,0.245557]
[1729699121088,0.0002,66219.0,66218.0,0.3479734]
[1729699121587,0.0002,66229.0,66218.0,0.79022968]
[1729699121780,0.0002,66229.0,66228.0,0.32100987]
[1729699121975,0.0002,66229.0,66228.0,0.3479614]
[1729699122482,0.0002,66229.0,66228.0,0.245545]
[1729699122686,0.0002,66229.0,66228.0,0.348245]
[1729699122885,0.0002,66235.0,66234.0,0.075539]
[1729699123089,0.1117,66246.0,66234.0,0.27218288]
[1729699123278,0.1117,66246.0,66228.0,0.60297455]
[1729699123279,0.075528,66243.0,66241.0,0.07553]
[1729699123475,0.075528,66243.0,66242.0,0.075529]
[1729699123681,0.1117,66246.0,66243.0,0.075528]
[1729699123682,0.187225,66246.0,66243.0,0.075528]
[1729699123875,0.187225,66246.0,66243.0,0.245528]
[1729699124282,0.1117,66246.0,66243.0,0.245528]
[1729699124486,0.0002,66246.0,66243.0,0.245528]
[1729699124987,0.0002,66246.0,66243.0,0.353728]
[1729699125994,0.0002,66246.0,66243.0,0.39883039]
[1729699126195,0.0002,66246.0,66243.0,0.40667333]
[1729699126492,0.0002,66246.0,66243.0,0.36157094]
[1729699127385,0.0002,66246.0,66243.0,0.40667357]
[1729699127699,0.0002,66246.0,66243.0,0.36157094]
[1729699128995,0.0002,66246.0,66243.0,0.40665032]
[1729699129181,0.0002,66246.0,66243.0,0.36157094]
[1729699129592,0.0002,66246.0,66243.0,0.42181661]
[1729699130596,0.0002,66246.0,66243.0,0.36157094]
[1729699131481,0.0002,66246.0,66243.0,0.53869703]
[1729699132795,0.0002,66246.0,66243.0,0.36157094]
[1729699133195,0.0002,66246.0,66243.0,0.43697381]
[1729699133395,0.0002,66246.0,66243.0,0.44685381]
[1729699133604,0.0002,66246.0,66243.0,0.37145094]
[1729699137800,0.0002,66246.0,66243.0,0.37141094]
[1729699138008,0.0002,66246.0,66243.0,0.54875463]
[1729699138303,0.0002,66246.0,66243.0,0.47335176]
[1729699139500,0.0002,66246.0,66243.0,0.5639096]
[1729699139807,0.0002,66246.0,66245.0,0.075526]
[1729699140098,0.0002,66246.0,66245.0,0.17746682]
[1729699140299,0.0002,66246.0,66245.0,0.075526]
[1729699141101,0.0002,66246.0,66245.0,0.25278118]
[1729699141309,0.0002,66246.0,66245.0,0.17746291]
[1729699141696,0.0002,66246.0,66245.0,0.25276756]
[1729699142097,0.0002,66246.0,66245.0,0.15083065]
[1729699142300,0.0002,66246.0,66245.0,0.17754735]
[1729699142900,0.0002,66246.0,66245.0,0.37091461]
[1729699143396,0.0002,66246.0,66245.0,0.29558735]
[1729699146302,0.0002,66246.0,66245.0,0.15086071]
[1729699146598,0.0002,66246.0,66245.0,0.29570432]
[1729699148006,0.0002,66254.0,66253.0,0.075517]
[1729699148201,0.0002,66254.0,66253.0,0.245517]
[1729699150302,0.0002,66254.0,66253.0,0.32084496]
[1729699150598,0.0002,66254.0,66253.0,0.245517]
[1729699151103,0.0002,66254.0,66253.0,0.42289051]
[1729699151513,0.0002,66254.0,66253.0,0.34756255]
[1729699151905,0.0008,66262.0,66253.0,0.34756255]
[1729699152111,0.0002,66265.0,66264.0,0.075504]
[1729699152309,0.0002,66265.0,66264.0,0.13581132]
[1729699152499,0.0002,66265.0,66264.0,0.075504]
[1729699154505,0.0002,66265.0,66261.0,0.07537459]
[1729699154707,0.0002,66265.0,66257.0,0.09044304]
[1729699154708,0.45276,66264.0,66260.0,0.04524965]
[1729699154910,0.245508,66261.0,66260.0,0.04525038]
[1729699155213,0.245508,66261.0,66256.0,0.06032451]
[1729699155214,0.07551,66259.0,66256.0,0.06032451]
[1729699155409,0.2784,66260.0,66257.0,0.06032451]
[1729699155615,0.1084,66260.0,66259.0,0.07551]
[1729699156111,0.1084,66260.0,66257.0,0.06032451]
[1729699156412,0.1084,66260.0,66250.0,0.08548014]
[1729699156413,0.0002,66258.0,66256.0,0.13583751]
[1729699156614,0.0002,66258.0,66257.0,0.075512]
[1729699158616,0.0002,66258.0,66256.0,0.06032451]
[1729699158813,0.0002,66258.0,66256.0,0.13583751]
[1729699159405,0.0002,66258.0,66257.0,0.06032451]
[1729699159612,0.0002,66258.0,66257.0,0.13583651]
[1729699160714,0.0002,66258.0,66257.0,0.075512]
[1729699160916,0.0002,66258.0,66257.0,0.13583651]
[1729699161111,0.0002,66258.0,66257.0,0.075512]
[1729699163037,0.0002,66258.0,66257.0,0.08300027]
[1729699163819,0.0002,66258.0,66257.0,0.14333757]
[1729699164214,0.0002,66258.0,66257.0,0.08300027]
[1729699165316,0.0002,66258.0,66257.0,0.1433475]
[1729699165516,0.0002,66258.0,66257.0,0.08300027]
[1729699165916,0.0002,66258.0,66257.0,0.1433475]
[1729699167321,0.0002,66258.0,66257.0,0.18474077]
[1729699168009,0.0002,66258.0,66257.0,0.28624077]
[1729699169119,0.0002,66258.0,66257.0,0.37672458]
[1729699169915,0.0002,66258.0,66257.0,0.37673189]
[1729699170723,0.0002,66261.0,66260.0,0.075509]
[1729699170934,0.0002,66261.0,66260.0,0.3472495]
[1729699173330,0.0002,66261.0,66260.0,0.32089399]
[1729699173910,0.0002,66261.0,66260.0,0.245509]
[1729699176928,0.0002,66261.0,66260.0,0.075509]
[1729699177429,0.0002,66261.0,66260.0,0.245509]
[1729699177819,0.0002,66261.0,66260.0,0.075509]
[1729699179826,0.075708,66261.0,66260.0,0.1358121]
[1729699180034,0.0002,66261.0,66260.0,0.075509]
[1729699181629,0.0002,66261.0,66260.0,0.245509]
[1729699182529,0.0002,66261.0,66260.0,0.26089399]
[1729699183124,0.0002,66261.0,66260.0,0.185509]
[1729699183626,0.0002,66261.0,66260.0,0.075509]
[1729699186633,0.0002,66261.0,66260.0,0.25239671]
[1729699186939,0.0002,66261.0,66260.0,0.075509]
[1729699188524,0.1102,66261.0,66257.0,0.08287326]
[1729699188725,0.2191,66261.0,66260.0,0.075509]
[1729699188926,0.2191,66261.0,66260.0,0.13583743]
[1729699189134,0.1091,66261.0,66260.0,0.075509]
[1729699189930,0.0002,66261.0,66260.0,0.075509]
[1729699200881,0.0002,66262.0,66257.0,0.00748827]
[1729699201182,0.07199424,66687.0,66300.0,0.00019376]
[1729699201414,0.02296729,66365.0,66300.0,0.00019376]
[1729699201669,0.02296729,66365.0,66334.0,0.075424]
[1729699201670,0.075403,66354.0,66334.0,0.075424]
[1729699202073,0.60664,66353.0,66334.0,0.075424]
[1729699202264,0.15444,66352.0,66334.0,0.075424]
[1729699202764,0.4522,66351.0,66334.0,0.075424]
[1729699202964,0.1544,66351.0,66334.0,0.075424]
[1729699203571,0.1544,66351.0,66320.0,0.103]
[1729699204277,0.01515136,66365.0,66338.0,0.0597824]
[1729699204468,0.1544,66364.0,66338.0,0.0597824]
[1729699204662,0.1544,66363.0,66338.0,0.0597824]
[1729699204868,0.01515136,66365.0,66338.0,0.0597824]
[1729699204869,0.1544,66362.0,66338.0,0.0597824]
[1729699205258,0.2027,66361.0,66321.0,0.1149832]
[1729699205575,0.0002,66322.0,66321.0,0.1149832]
[1729699206561,0.075638,66322.0,66321.0,0.1149832]
[1729699206764,0.0002,66322.0,66301.0,0.1199648]
[1729699207256,0.0002,66302.0,66301.0,0.1199648]
[1729699212542,0.0002,66302.0,66301.0,0.1954268]
[1729699213055,0.0002,66302.0,66301.0,0.6479068]
[1729699213256,0.0002,66322.0,66301.0,1.45750432]
[1729699213448,0.0002,66322.0,66302.0,0.075461]
[1729699213652,0.03013248,66321.0,66312.0,0.10440133]
[1729699213962,0.0002,66322.0,66312.0,0.10440133]
[1729699214252,0.0002,66322.0,66312.0,0.17985033]
[1729699214253,0.075441,66320.0,66312.0,0.17985033]
[1729699214754,0.0002,66322.0,66312.0,0.10440133]
[1729699214955,0.075442,66319.0,66312.0,0.10440133]
[1729699215745,0.0002,66322.0,66312.0,0.10440133]
[1729699215953,0.0002,66322.0,66312.0,0.11209703]
[1729699216145,0.0002,66322.0,66319.0,0.075442]
[1729699216552,0.0002,66322.0,66318.0,0.075443]
[1729699216857,0.0002,66319.0,66318.0,0.075443]
[1729699218053,0.0002,66319.0,66314.0,0.075447]
[1729699218256,0.075642,66319.0,66314.0,0.075447]
[1729699218454,0.0002,66319.0,66312.0,0.0076957]
[1729699218649,0.075444,66317.0,66312.0,0.075449]
[1729699218960,0.00555007,67093.0,66313.0,0.25924796]
[1729699219260,0.075431,66328.0,66327.0,0.08945176]
[1729699219451,0.075431,66328.0,66327.0,0.11500268]
[1729699219765,0.527751,66328.0,66327.0,0.11500268]
[1729699221168,0.527751,66328.0,66327.0,0.20447145]
[1729699221549,0.527751,66328.0,66327.0,0.11500268]
[1729699221550,0.075431,66328.0,66327.0,0.11500268]
[1729699221758,0.075431,66328.0,66327.0,0.25497536]
[1729699222149,0.075431,66328.0,66327.0,0.25497658]
[1729699225170,0.075431,66328.0,66327.0,0.36997434]
[1729699225461,0.075431,66328.0,66327.0,0.25497166]
[1729699225669,0.697751,66328.0,66327.0,0.25497166]
[1729699225981,1.297751,66328.0,66327.0,0.25497166]
[1729699226181,0.075433,66327.0,66321.0,0.10437272]
[1729699226469,0.075433,66327.0,66322.0,0.13999375]
[1729699226470,0.075437,66323.0,66322.0,0.13999375]
[1729699226659,0.075439,66321.0,66318.0,0.10437272]
[1729699226966,0.17,66319.0,66318.0,0.10437272]
[1729699227171,0.17,66319.0,66318.0,0.1649775]
[1729699227172,0.1702,66319.0,66318.0,0.1649775]
[1729699227469,0.528002,66319.0,66318.0,0.1649775]
[1729699227675,0.075642,66319.0,66318.0,0.28424036]
[1729699227967,0.0002,66319.0,66318.0,0.28490484]
[1729699228175,0.0002,66319.0,66318.0,0.3549273]
[1729699228360,0.0002,66319.0,66318.0,0.43036516]
[1729699228771,0.075435,66325.0,66318.0,0.43036516]
[1729699228969,0.075435,66325.0,66324.0,0.12011246]
[1729699229267,0.075435,66325.0,66324.0,0.35491023]
[1729699229464,0.527755,66325.0,66324.0,0.35491023]
[1729699229666,0.45232,66325.0,66324.0,0.490383]
[1729699229971,0.527755,66325.0,66324.0,0.35490073]
[1729699230759,0.45223743,66325.0,66324.0,0.35490073]
[1729699231966,0.45223743,66325.0,66324.0,0.1649621]
[1729699232165,0.075435,66325.0,66324.0,0.1649621]
[1729699232562,0.527755,66325.0,66324.0,0.1649621]
[1729699232761,0.075435,66325.0,66324.0,0.1649621]
[1729699233670,0.42958169,66325.0,66324.0,0.1649621]
[1729699233871,0.42958169,66325.0,66324.0,0.35490858]
[1729699234367,0.17,66327.0,66324.0,0.16496884]
[1729699234573,0.245433,66327.0,66326.0,0.12049537]
[1729699234870,0.245433,66327.0,66326.0,0.10543825]
[1729699235071,0.697753,66327.0,66326.0,0.27040748]
[1729699235467,0.697753,66327.0,66326.0,0.16496923]
[1729699236273,0.697753,66327.0,66326.0,0.28547327]
[1729699236573,0.697753,66327.0,66326.0,0.16496923]
[1729699236771,0.697753,66327.0,66326.0,0.30495734]
[1729699238373,0.697753,66327.0,66326.0,0.49489984]
[1729699240173,0.697753,66327.0,66324.0,0.14945601]
[1729699240174,1.467753,66327.0,66324.0,0.13562329]
[1729699240389,0.45232,66326.0,66314.0,0.0004]
[1729699240676,0.45232,66326.0,66311.0,0.0004]
[1729699240677,0.07545,66312.0,66311.0,0.0004]
[1729699240873,0.23805,66312.0,66311.0,0.0004]
[1729699241175,0.23805,66312.0,66308.0,0.0004]
[1729699241176,1.46065,66312.0,66308.0,0.0004]
[1729699241380,0.075453,66309.0,66308.0,0.0004]
[1729699241575,0.075653,66309.0,66308.0,0.0004]
[1729699241873,1.128093,66309.0,66308.0,0.0004]
[1729699243470,1.13573822,66309.0,66308.0,0.0004]
[1729699243666,0.53573822,66309.0,66308.0,0.0004]
[1729699246477,1.13573822,66309.0,66308.0,0.09061612]
[1729699246667,0.69833822,66309.0,66308.0,0.09061612]
[1729699247782,0.69833822,66309.0,66308.0,0.0004]
[1729699248786,0.62288522,66309.0,66308.0,0.0004]
[1729699249087,0.08329822,66309.0,66308.0,0.0004]
[1729699249276,0.23793822,66309.0,66308.0,0.0004]
[1729699249476,0.08329822,66309.0,66308.0,0.0004]
[1729699249679,0.23793822,66309.0,66308.0,0.0004]
[1729699249882,0.08329822,66309.0,66308.0,0.0004]
[1729699250086,0.07565,66312.0,66308.0,0.26865609]
[1729699250275,0.15464,66325.0,66314.0,0.09825609]
[1729699250579,0.075639,66321.0,66316.0,0.17]
[1729699250887,0.0002,66321.0,66317.0,0.14001981]
[1729699251076,0.0002,66321.0,66320.0,0.09825609]
[1729699251273,0.00376,66328.0,66320.0,0.57386205]
[1729699251584,0.075435,66325.0,66323.0,0.09825609]
[1729699251777,0.075435,66325.0,66324.0,0.1399921]
[1729699252585,0.00376,66328.0,66324.0,0.13998537]
[1729699252781,0.00376,66328.0,66327.0,0.18843266]
[1729699253283,0.075431,66328.0,66327.0,0.18843266]
[1729699253496,0.00954628,66330.0,66327.0,0.26825609]
[1729699253781,0.075429,66330.0,66329.0,0.18843978]
[1729699253981,0.00996467,66332.0,66329.0,0.09449609]
[1729699254177,0.075627,66332.0,66331.0,0.09449609]
[1729699255988,0.245627,66332.0,66331.0,0.09449609]
[1729699256288,0.245627,66332.0,66331.0,0.20949741]
[1729699256679,0.245627,66332.0,66331.0,0.28463189]
[1729699256879,0.245627,66332.0,66331.0,0.2846313]
[1729699257098,0.245627,66332.0,66331.0,0.16963057]
[1729699257275,0.245627,66332.0,66331.0,0.09449609]
[1729699259589,0.075627,66332.0,66331.0,0.09449609]
[1729699260595,0.245627,66332.0,66331.0,0.09449609]
[1729699260787,0.07543,66329.0,66328.0,0.07513448]
[1729699261109,0.17,66329.0,66323.0,0.07513448]
[1729699261396,0.075433,66327.0,66326.0,0.09449609]
[1729699261582,0.245433,66327.0,66326.0,0.09449609]
[1729699263288,0.075438,66322.0,66321.0,0.17872069]
[1729699263499,0.075438,66322.0,66321.0,0.29373509]
[1729699263788,0.03767884,66322.0,66321.0,0.38823118]
[1729699264790,0.075435,66326.0,66321.0,0.46367018]
[1729699264993,0.075434,66326.0,66325.0,0.09449609]
[1729699266189,0.075434,66326.0,66325.0,0.15458905]
[1729699267794,0.075434,66326.0,66325.0,0.09449609]
[1729699268187,0.075434,66326.0,66325.0,0.15458905]
[1729699268390,0.075434,66326.0,66325.0,0.09449609]
[1729699268795,0.075434,66326.0,66325.0,0.28462106]
[1729699269190,0.0002,66332.0,66325.0,0.28462106]
[1729699269392,0.07543,66330.0,66329.0,0.23006969]
[1729699269693,0.07543,66330.0,66329.0,0.17]
[1729699269899,0.07543,66330.0,66329.0,0.26449609]
[1729699271292,0.07543,66330.0,66329.0,0.09449609]
[1729699274498,0.07543,66329.0,66328.0,0.07512069]
[1729699274692,0.07543,66329.0,66321.0,0.179039]
[1729699274693,0.24543,66329.0,66325.0,0.07512069]
[1729699274993,0.075435,66325.0,66324.0,0.09449609]
[1729699275400,0.075435,66325.0,66324.0,0.16961678]
[1729699275793,0.075435,66325.0,66324.0,0.28462604]
[1729699275990,0.17,66326.0,66322.0,0.07512069]
[1729699276306,0.07543,66329.0,66323.0,0.09449609]
[1729699276307,0.075436,66324.0,66323.0,0.09449609]
[1729699276495,0.075436,66324.0,66323.0,0.28463122]
[1729699277000,0.075436,66324.0,66323.0,0.28463207]
[1729699277390,0.075436,66324.0,66323.0,0.20951138]
[1729699278103,0.075436,66324.0,66323.0,0.28478828]
[1729699278491,0.075436,66324.0,66323.0,0.20951567]
[1729699278793,0.075436,66324.0,66323.0,0.20951515]
[1729699279205,0.245436,66324.0,66323.0,0.20951515]
[1729699279499,0.075439,66321.0,66314.0,0.09018369]
[1729699279692,0.075439,66321.0,66308.0,0.0004]